bitfinex-derivatives/quotes_BNBF0:USTF0_20250401
["timestamp","ask_amount","ask_price","bid_price","bid_amount"]
[1743491247043,0.62904897,610.44,608.92,2.49345037]
[1743491247235,0.62905434,610.43,608.92,2.49345037]
[1743491247642,0.30141645,610.42,608.92,2.49345037]
[1743491247844,0.32764862,610.41,608.92,2.49345037]
[1743491248042,0.30141645,610.4,608.92,2.49345037]
[1743491248343,0.32765936,610.39,608.92,2.49345037]
[1743491248536,0.30141645,610.38,608.92,2.49345037]
[1743491249537,0.28546585,610.37,608.92,2.49345037]
[1743491249740,0.30141645,610.36,608.92,2.49345037]
[1743491252341,0.32765936,610.39,608.92,2.49345037]
[1743491252342,0.30141645,610.38,608.92,2.49345037]
[1743491252541,0.28545883,610.35,608.92,2.49345037]
[1743491252747,0.30141645,610.34,608.92,2.49345037]
[1743491254046,0.28545883,610.35,608.92,2.49345037]
[1743491255244,0.32765936,610.39,608.92,2.49345037]
[1743491255747,0.28542839,610.34,608.92,2.49345037]
[1743491258250,0.32765936,610.39,608.92,2.49345037]
[1743491258651,0.28542839,610.33,608.92,2.49345037]
[1743491261254,0.32765936,610.39,608.92,2.49345037]
[1743491261646,0.28541902,610.32,608.92,2.49345037]
[1743491264155,0.32765936,610.39,608.92,2.49345037]
[1743491264356,0.30133901,610.38,608.92,2.49345037]
[1743491264551,0.28542137,610.31,608.92,2.49345037]
[1743491266555,0.3013403,610.3,608.92,2.49345037]
[1743491266859,0.30135827,610.3,608.92,2.49345037]
[1743491267455,0.30135827,610.29,608.92,2.49345037]
[1743491267653,0.28543775,610.29,608.92,2.49345037]
[1743491267861,0.30134855,610.28,608.92,2.49345037]
[1743491270456,0.28544009,610.27,608.92,2.49345037]
[1743491270962,0.30134855,610.26,608.92,2.49345037]
[1743491271267,0.28544009,610.27,608.92,2.49345037]
[1743491271268,0.30135385,610.25,608.92,2.49345037]
[1743491271465,0.30135385,610.26,608.92,2.49345037]
[1743491271661,0.30135385,610.25,608.92,2.49345037]
[1743491271859,0.30135385,610.26,608.92,2.49345037]
[1743491272059,0.30135385,610.25,608.92,2.49345037]
[1743491272260,0.30135385,610.26,608.92,2.49345037]
[1743491272565,0.30135385,610.25,608.92,2.49345037]
[1743491272761,0.30135385,610.26,608.92,2.49345037]
[1743491272959,0.30135385,610.25,608.92,2.49345037]
[1743491273265,0.32765936,610.39,608.92,2.49345037]
[1743491273462,0.30134062,610.38,608.92,2.49345037]
[1743491273662,0.28544244,610.24,608.92,2.49345037]
[1743491273866,0.32765936,610.39,608.92,2.49345037]
[1743491274067,0.28542956,610.23,608.92,2.49345037]
[1743491274463,0.32765936,610.39,608.92,2.49345037]
[1743491274668,0.28542839,610.22,608.92,2.49345037]
[1743491275066,0.32765936,610.39,608.92,2.49345037]
[1743491275367,0.28542839,610.21,608.92,2.49345037]
[1743491275568,0.32765936,610.39,608.92,2.49345037]
[1743491275768,0.3013547,610.38,608.92,2.49345037]
[1743491276068,0.28545297,610.2,608.92,2.49345037]
[1743491276269,0.3013547,610.19,608.92,2.49345037]
[1743491276467,0.3013547,610.38,608.92,2.49345037]
[1743491276667,0.28545297,610.19,608.92,2.49345037]
[1743491276963,0.32765936,610.39,608.92,2.49345037]
[1743491277168,0.28544478,610.18,608.92,2.49345037]
[1743491277467,0.32765936,610.39,608.92,2.49345037]
[1743491277669,0.30137482,610.38,608.92,2.49345037]
[1743491278167,0.28544244,610.37,608.92,2.49345037]
[1743491279168,0.32765936,610.39,608.92,2.49345037]
[1743491279467,0.28544244,610.36,608.92,2.49345037]
[1743491282268,0.32765936,610.39,608.92,2.49345037]
[1743491282468,0.28544009,610.35,608.92,2.49345037]
[1743491285271,0.32765936,610.39,608.92,2.49345037]
[1743491285570,0.28544009,610.34,608.92,2.49345037]
[1743491288480,0.32765936,610.39,608.92,2.49345037]
[1743491288680,0.28544009,610.33,608.92,2.49345037]
[1743491289377,0.30135332,610.32,608.92,2.49345037]
[1743491291482,0.30135332,610.31,608.92,2.49345037]
[1743491291679,0.28546117,610.31,608.92,2.49345037]
[1743491291881,0.30135332,610.3,608.92,2.49345037]
[1743491293186,0.30141214,610.29,608.92,2.49345037]
[1743491293385,0.30141214,610.3,608.92,2.49345037]
[1743491297492,0.2854963,610.29,608.92,2.49345037]
[1743491297691,0.58690844,610.29,608.92,2.49345037]
[1743491297889,0.30141214,610.28,608.92,2.49345037]
[1743491299093,0.2854963,610.29,608.92,2.49345037]
[1743491299294,0.30147194,610.28,608.92,2.49345037]
[1743491300488,0.58697058,610.27,608.92,2.49345037]
[1743491300688,0.30147194,610.26,608.92,2.49345037]
[1743491302397,0.30147631,610.25,608.92,2.49345037]
[1743491302591,0.30147631,610.24,608.92,2.49345037]
[1743491302896,0.30147631,610.23,608.92,2.49345037]
[1743491303096,0.30147631,610.26,608.92,2.49345037]
[1743491303598,0.28550098,610.22,608.92,2.49345037]
[1743491303791,0.30147631,610.21,608.92,2.49345037]
[1743491306595,0.28552323,610.2,608.92,2.49345037]
[1743491306996,0.30150984,610.19,608.92,2.49345037]
[1743491308192,0.28552323,610.2,608.92,2.49345037]
[1743491308395,0.30150279,610.19,608.92,2.49345037]
[1743491317201,0.30154065,610.18,608.92,2.49345037]
[1743491317398,0.30154065,610.19,608.92,2.49345037]
[1743491318603,0.28552323,610.2,608.92,2.49345037]
[1743491318803,0.30154621,610.19,608.92,2.49345037]
[1743491319507,0.62931297,610.19,608.92,2.49345037]
[1743491319707,0.32777213,610.18,608.92,2.49345037]
[1743491320505,0.30155704,610.17,608.92,2.49345037]
[1743491320703,0.32778287,610.16,608.92,2.49345037]
[1743491320901,0.30155704,610.15,608.92,2.49345037]
[1743491321102,0.32779362,610.14,608.92,2.49345037]
[1743491321300,0.30155704,610.13,608.92,2.49345037]
[1743491321504,0.62935603,610.13,608.92,2.49345037]
[1743491321805,0.30155704,610.12,608.92,2.49345037]
[1743491322004,0.58711542,610.12,608.92,2.49345037]
[1743491322304,0.30155704,610.11,608.92,2.49345037]
[1743491323301,0.30155517,610.1,608.92,2.49345037]
[1743491323608,0.30155517,610.09,608.92,2.49345037]
[1743491323809,0.30155517,610.08,608.92,2.49345037]
[1743491324108,0.30155517,610.07,608.92,2.49345037]
[1743491324309,0.30155517,610.11,608.92,2.49345037]
[1743491324608,0.28556306,610.07,608.92,2.49345037]
[1743491324810,0.30156646,610.06,608.92,2.49345037]
[1743491327604,0.28556892,610.05,608.92,2.49345037]
[1743491328113,0.3015834,610.04,608.92,2.49345037]
[1743491330415,0.3015834,610.12,608.92,2.49345037]
[1743491330617,0.3015834,610.11,608.92,2.49345037]
[1743491330914,0.28557127,610.03,608.92,2.49345037]
[1743491331116,0.3015834,610.02,608.92,2.49345037]
[1743491331415,0.3015834,610.01,608.92,2.49345037]
[1743491333518,0.32780436,610.12,608.92,2.49345037]
[1743491333718,0.28557478,610.0,608.92,2.49345037]
[1743491333916,0.32780436,610.12,608.92,2.49345037]
[1743491333917,0.30157805,609.99,608.92,2.49345037]
[1743491334113,0.30157805,609.98,608.92,2.49345037]
[1743491334313,0.30157805,609.97,608.92,2.49345037]
[1743491334511,0.32780436,610.12,608.92,2.49345037]
[1743491334512,0.30157805,609.96,608.92,2.49345037]
[1743491334717,0.30157805,609.95,608.92,2.49345037]
[1743491334915,0.30157805,610.11,608.92,2.49345037]
[1743491335219,0.30157805,610.1,608.92,2.49345037]
[1743491335427,0.28556306,609.94,608.92,2.49345037]
[1743491335716,0.30157805,609.93,608.92,2.49345037]
[1743491335921,0.30157805,609.92,608.92,2.49345037]
[1743491337813,0.28556424,609.93,608.92,2.49345037]
[1743491339213,0.32780436,610.12,608.92,2.49345037]
[1743491339618,0.28554198,609.92,608.92,2.49345037]
[1743491339813,0.32780436,610.12,608.92,2.49345037]
[1743491340014,0.30152438,610.11,608.92,2.49345037]
[1743491340616,0.28553729,610.1,608.92,2.49345037]
[1743491342219,0.32780436,610.12,608.92,2.49345037]
[1743491342623,0.2855326,610.09,608.92,2.49345037]
[1743491343324,0.30150145,610.08,608.92,2.49345037]
[1743491343519,0.30149819,610.07,608.92,2.49345037]
[1743491343719,0.2855326,610.09,608.92,2.49345037]
[1743491343921,0.30149704,610.08,608.92,2.49345037]
[1743491345519,0.28553612,610.07,608.92,2.49345037]
[1743491346024,0.30148701,610.06,608.92,2.49345037]
[1743491346425,0.28553612,610.07,608.92,2.49345037]
[1743491346617,0.3014863,610.06,608.92,2.49345037]
[1743491348428,0.3014863,610.11,608.92,2.49345037]
[1743491348625,0.28553846,610.05,608.92,2.49345037]
[1743491351233,0.32780436,610.12,608.92,2.49345037]
[1743491351634,0.28550918,610.04,608.92,2.49345037]
[1743491351836,0.32780436,610.12,608.92,2.49345037]
[1743491352342,0.28550918,610.03,608.92,2.49345037]
[1743491352535,0.32780436,610.12,608.92,2.49345037]
[1743491352736,0.28542605,610.11,608.92,2.49345037]
[1743491354239,0.32780436,610.12,608.92,2.49345037]
[1743491354738,0.28550918,610.1,608.92,2.49345037]
[1743491357337,0.32780436,610.12,608.92,2.49345037]
[1743491357738,0.28550918,610.09,608.92,2.49345037]
[1743491358837,0.30144629,610.08,608.92,2.49345037]
[1743491359541,0.28550918,610.09,608.92,2.49345037]
[1743491360442,0.3014403,610.08,608.92,2.49345037]
[1743491360642,0.28550918,610.08,608.92,2.49345037]
[1743491360941,0.3014403,610.07,608.92,2.49345037]
[1743491361538,0.28550918,610.08,608.92,2.49345037]
[1743491363040,0.30144616,610.07,608.92,2.49345037]
[1743491363437,0.30144616,610.11,608.92,2.49345037]
[1743491363637,0.28551386,610.06,608.92,2.49345037]
[1743491363841,0.30145211,610.05,608.92,2.49345037]
[1743491364244,0.28551386,610.06,608.92,2.49345037]
[1743491369248,0.32780436,610.12,608.92,2.49345037]
[1743491369645,0.28549981,610.05,608.92,2.49345037]
[1743491375253,0.32780436,610.12,608.92,2.49345037]
[1743491375654,0.28549981,610.04,608.92,2.49345037]
[1743491375954,0.32780436,610.12,608.92,2.49345037]
[1743491376154,0.28549981,610.03,608.92,2.49345037]
[1743491376556,0.32780436,610.12,608.92,2.49345037]
[1743491376751,0.28549981,610.02,608.92,2.49345037]
[1743491377149,0.32780436,610.12,608.92,2.49345037]
[1743491377356,0.28549981,610.01,608.92,2.49345037]
[1743491377757,0.32780436,610.12,608.92,2.49345037]
[1743491378057,0.28549981,610.0,608.92,2.49345037]
[1743491378255,0.32780436,610.12,608.92,2.49345037]
[1743491379660,0.28545063,610.11,608.92,2.49345037]
[1743491381359,0.32780436,610.12,608.92,2.49345037]
[1743491381560,0.28549981,610.1,608.92,2.49345037]
[1743491384256,0.32780436,610.12,608.92,2.49345037]
[1743491384658,0.28545766,610.11,608.92,2.49345037]
[1743491387061,0.30144449,610.1,608.92,2.49345037]
[1743491387257,0.32780436,610.12,608.92,2.49345037]
[1743491387458,0.3014414,610.11,608.92,2.49345037]
[1743491387656,0.28550098,610.09,608.92,2.49345037]
[1743491388062,0.3014583,610.08,608.92,2.49345037]
[1743491390556,0.28553143,610.07,608.92,2.49345037]
[1743491390963,0.3014583,610.06,608.92,2.49345037]
[1743491393463,0.3014583,610.05,608.92,2.49345037]
[1743491393657,0.3014583,610.04,608.92,2.49345037]
[1743491395164,0.28553378,610.05,608.92,2.49345037]
[1743491395865,0.30149184,610.04,608.92,2.49345037]
[1743491396565,0.28553612,610.03,608.92,2.49345037]
[1743491399363,0.32780436,610.12,608.92,2.49345037]
[1743491399566,0.30149431,610.11,608.92,2.49345037]
[1743491399763,0.28552792,610.02,608.92,2.49345037]
[1743491400067,0.32780436,610.12,608.92,2.49345037]
[1743491400263,0.28552909,610.01,608.92,2.49345037]
[1743491400769,0.32780436,610.12,608.92,2.49345037]
[1743491400969,0.28552792,610.0,608.92,2.49345037]
[1743491401165,0.32780436,610.12,608.92,2.49345037]
[1743491401366,0.30149147,610.11,608.92,2.49345037]
[1743491401564,0.28552792,609.99,608.92,2.49345037]
[1743491401869,0.32780436,610.12,608.92,2.49345037]
[1743491402073,0.28552909,609.98,608.92,2.49345037]
[1743491402370,0.32780436,610.12,608.92,2.49345037]
[1743491402670,0.28552909,609.97,608.92,2.49345037]
[1743491403074,0.32780436,610.12,608.92,2.49345037]
[1743491403270,0.28552909,609.96,608.92,2.49345037]
[1743491403471,0.32780436,610.12,608.92,2.49345037]
[1743491403671,0.30157159,610.11,608.92,2.49345037]
[1743491403971,0.28556892,609.95,608.92,2.49345037]
[1743491404174,0.32781511,610.1,608.92,2.49345037]
[1743491404672,0.28557009,609.94,608.92,2.49345037]
[1743491404874,0.32781511,610.1,608.92,2.49345037]
[1743491405069,0.28553026,609.93,608.92,2.49345037]
[1743491405470,0.32781511,610.1,608.92,2.49345037]
[1743491405672,0.28557009,609.92,608.92,2.49345037]
[1743491406065,0.32781511,610.1,608.92,2.49345037]
[1743491406268,0.28557009,609.91,608.92,2.49345037]
[1743491406670,0.32781511,610.1,608.92,2.49345037]
[1743491406866,0.28557009,609.9,608.92,2.49345037]
[1743491407172,0.32781511,610.1,608.92,2.49345037]
[1743491407672,0.28557009,609.89,608.92,2.49345037]
[1743491407871,0.32781511,610.1,608.92,2.49345037]
[1743491408074,0.30160213,610.09,608.92,2.49345037]
[1743491408273,0.2855865,609.88,608.92,2.49345037]
[1743491408471,0.32782585,610.08,608.92,2.49345037]
[1743491408667,0.30160827,610.07,608.92,2.49345037]
[1743491408874,0.28558884,609.87,608.92,2.49345037]
[1743491409074,0.3278366,610.06,608.92,2.49345037]
[1743491409272,0.30161293,610.05,608.92,2.49345037]
[1743491409472,0.28559119,609.86,608.92,2.49345037]
[1743491409775,0.32784735,610.04,608.92,2.49345037]
[1743491409975,0.28559353,609.85,608.92,2.49345037]
[1743491410375,0.32784735,610.04,608.92,2.49345037]
[1743491410575,0.28559939,609.84,608.92,2.49345037]
[1743491410777,0.30162123,609.83,608.92,2.49345037]
[1743491411278,0.58725461,609.82,608.92,2.49345037]
[1743491411471,0.30162123,609.81,608.92,2.49345037]
[1743491412074,0.30162123,609.81,608.92,2.165]
[1743491414480,0.30170264,609.8,608.92,2.165]
[1743491414675,0.30170264,609.81,608.92,2.165]
[1743491414881,0.30170264,609.8,608.92,2.165]
[1743491415081,0.30170264,609.81,608.92,2.165]
[1743491415381,0.30170264,609.8,608.92,2.165]
[1743491415681,0.30170264,609.79,608.92,2.165]
[1743491415881,0.30170264,609.78,608.92,2.165]
[1743491416081,0.30170264,609.77,608.92,2.165]
[1743491416279,0.30170264,609.81,608.92,2.165]
[1743491416482,0.30170264,609.8,608.92,2.165]
[1743491416677,0.28563338,609.82,608.92,2.165]
[1743491416678,0.30170264,609.79,608.92,2.165]
[1743491416879,0.30170264,609.81,608.92,2.165]
[1743491417081,0.30170264,609.8,608.92,2.165]
[1743491417284,0.32784735,610.04,608.92,2.165]
[1743491417285,0.30170264,609.81,608.92,2.165]
[1743491417480,0.30170264,609.8,608.92,2.165]
[1743491417677,0.58735947,609.79,608.92,2.165]
[1743491417884,0.30170264,609.78,608.92,2.165]
[1743491418879,0.28565683,609.79,608.92,2.165]
[1743491418880,0.30169085,609.77,608.92,2.165]
[1743491419083,0.30169085,609.76,608.92,2.165]
[1743491419282,0.30169085,609.75,608.92,2.165]
[1743491419580,0.30169085,609.78,608.92,2.165]
[1743491419884,0.30169085,609.77,608.92,2.165]
[1743491420085,0.30169085,609.78,608.92,2.165]
[1743491420280,0.30169085,609.77,608.92,2.165]
[1743491420486,0.30169085,610.03,608.92,2.165]
[1743491420687,0.28566034,609.77,608.92,2.165]
[1743491420880,0.30169085,609.76,608.92,2.165]
[1743491421085,0.30169085,609.75,608.92,2.165]
[1743491421286,0.3278581,610.02,608.92,2.165]
[1743491421287,0.30169085,610.01,608.92,2.165]
[1743491421481,0.6295597,610.0,608.92,2.165]
[1743491421684,0.62956507,609.99,608.92,2.165]
[1743491421880,0.62957045,609.98,608.92,2.165]
[1743491422081,0.62957582,609.97,608.92,2.165]
[1743491422281,0.30169085,609.96,608.92,2.165]
[1743491422483,0.32789572,609.95,608.92,2.165]
[1743491422684,0.30169085,609.94,608.92,2.165]
[1743491422884,0.32790648,609.93,608.92,2.165]
[1743491423088,0.30169085,609.92,608.92,2.165]
[1743491423292,0.32791723,609.91,608.92,2.165]
[1743491423590,0.30169175,609.9,608.92,2.165]
[1743491423792,0.32792798,609.89,608.92,2.165]
[1743491423989,0.30169175,609.88,608.92,2.165]
[1743491424193,0.32793874,609.87,608.92,2.165]
[1743491424392,0.30169175,609.86,608.92,2.165]
[1743491424994,0.30168677,609.85,608.92,2.165]
[1743491425193,0.30168677,609.86,608.92,2.165]
[1743491425394,0.30168677,609.85,608.92,2.165]
[1743491425599,0.30168677,609.84,608.92,2.165]
[1743491425898,0.30168677,609.83,608.92,2.165]
[1743491426093,0.30168677,609.86,608.92,2.165]
[1743491426299,0.30168677,609.82,608.92,2.165]
[1743491426498,0.30168677,609.81,608.92,2.165]
[1743491426692,0.28565096,609.85,608.92,2.165]
[1743491426897,0.30168677,609.84,608.92,2.165]
[1743491427199,0.30168666,609.83,608.92,2.165]
[1743491427397,0.30168666,609.84,608.92,2.165]
[1743491427593,0.28565096,609.85,608.92,2.165]
[1743491427594,0.30168666,609.83,608.92,2.165]
[1743491427792,0.30168666,609.84,608.92,2.165]
[1743491427997,0.30168666,609.83,608.92,2.165]
[1743491428402,0.30168666,609.82,608.92,2.165]
[1743491428601,0.30168666,609.84,608.92,2.165]
[1743491428799,0.30168666,609.83,608.92,2.165]
[1743491428995,0.30168666,609.82,608.92,2.165]
[1743491429201,0.30168666,609.84,608.92,2.165]
[1743491429396,0.30168666,609.83,608.92,2.165]
[1743491429597,0.30168031,609.82,608.92,2.165]
[1743491429798,0.30168031,609.81,608.92,2.165]
[1743491430002,0.30168031,609.8,608.92,2.165]
[1743491430199,0.30168031,609.82,608.92,2.165]
[1743491430398,0.30168031,609.81,608.92,2.165]
[1743491430599,0.30168031,609.8,608.92,2.165]
[1743491430800,0.30168031,609.79,608.92,2.165]
[1743491431000,0.28565331,609.83,608.92,2.165]
[1743491431203,0.30167938,609.82,608.92,2.165]
[1743491432605,0.30167938,609.81,608.92,2.165]
[1743491432907,0.30167938,609.8,608.92,2.165]
[1743491435612,0.32793874,609.87,608.92,2.165]
[1743491435813,0.28564393,609.79,608.92,2.165]
[1743491436006,0.30166634,609.78,608.92,2.165]
[1743491436407,0.32793874,609.87,608.92,2.165]
[1743491436408,0.30166634,609.86,608.92,2.165]
[1743491436808,0.2856369,609.77,608.92,2.165]
[1743491437213,0.30166634,609.86,608.92,2.165]
[1743491437414,0.28563807,609.76,608.92,2.165]
[1743491437808,0.30166634,609.86,608.92,2.165]
[1743491438008,0.28563807,609.75,608.92,2.165]
[1743491438313,0.32793874,609.87,608.92,2.165]
[1743491438314,0.30166634,609.77,608.92,2.165]
[1743491438816,0.2856369,609.76,608.92,2.165]
[1743491441113,0.30173451,609.75,608.92,2.165]
[1743491441313,0.32800865,609.74,608.92,2.165]
[1743491441616,0.30173451,609.73,608.92,2.165]
[1743491442016,0.32801941,609.72,608.92,2.165]
[1743491442217,0.30173451,609.71,608.92,2.165]
[1743491442413,0.6297593,609.71,608.92,2.165]
[1743491442612,0.30173451,609.7,608.92,2.165]
[1743491444713,0.28570725,609.69,608.92,2.165]
[1743491444917,0.30173451,609.68,608.92,2.165]
[1743491445817,0.28570725,609.69,608.92,2.165]
[1743491446018,0.30175546,609.68,608.92,2.165]
[1743491447518,0.30175546,609.7,608.92,2.165]
[1743491447720,0.28570959,609.67,608.92,2.165]
[1743491447920,0.30175546,609.66,608.92,2.165]
[1743491450515,0.30175546,609.7,608.92,2.165]
[1743491450714,0.28569552,609.65,608.92,2.165]
[1743491450917,0.30175546,609.64,608.92,2.165]
[1743491451620,0.28569552,609.65,608.92,2.165]
[1743491451816,0.30174563,609.64,608.92,2.165]
[1743491452618,0.30174536,609.63,608.92,2.165]
[1743491452818,0.30174536,609.62,608.92,2.165]
[1743491453019,0.30174536,609.64,608.92,2.165]
[1743491453219,0.30174536,609.63,608.92,2.165]
[1743491453516,0.32802479,609.71,608.92,1.272]
[1743491453720,0.28568848,609.63,607.32,1.85916522]
[1743491453919,0.32802479,609.71,607.31,2.77615089]
[1743491454119,0.30172004,609.7,607.43,0.32925604]
[1743491454321,0.32802479,609.71,607.43,0.32925604]
[1743491454820,0.28582927,609.7,607.43,0.32925604]
[1743491455623,0.28582927,609.7,607.44,0.28586684]
[1743491455822,0.28582927,609.7,607.55,0.32919101]
[1743491456419,0.32802479,609.71,607.55,0.32919101]
[1743491456815,0.28584219,609.69,607.55,0.32919101]
[1743491457115,0.28584219,609.69,607.55,0.85119101]
[1743491459424,0.32802479,609.71,607.55,0.85119101]
[1743491459920,0.28583045,609.68,607.55,0.85119101]
[1743491460723,0.28583045,609.68,607.55,1.60619101]
[1743491462420,0.32802479,609.71,607.55,1.60619101]
[1743491462620,0.28583045,609.67,607.55,1.60619101]
[1743491464122,0.30168696,609.66,607.55,1.60619101]
[1743491465424,0.30168696,609.66,607.61,2.47517312]
[1743491465624,0.28583514,609.65,607.71,0.32910434]
[1743491465821,0.5875221,609.65,607.71,0.32910434]
[1743491466022,0.28583514,609.65,607.71,0.32910434]
[1743491466222,0.30168988,609.64,607.71,0.32910434]
[1743491467027,0.28583514,609.65,607.71,0.32910434]
[1743491467521,0.30168268,609.64,607.71,0.32910434]
[1743491468527,0.30168268,609.7,607.71,0.32910434]
[1743491468726,0.28581754,609.63,607.71,0.32910434]
[1743491471429,0.32802479,609.71,607.71,0.32910434]
[1743491471630,0.28581636,609.62,607.71,0.32910434]
[1743491472032,0.32802479,609.71,607.71,0.32910434]
[1743491473431,0.28574244,609.7,607.71,0.32910434]
[1743491477341,2.49593248,610.63,607.71,0.32910434]
[1743491477545,2.49593248,610.47,607.71,0.32910434]
[1743491477742,0.28568028,609.69,607.71,0.32910434]
[1743491477944,0.32762716,610.45,607.71,0.32910434]
[1743491478144,0.30161199,610.44,607.71,0.32910434]
[1743491478342,0.32764326,610.42,607.71,0.32910434]
[1743491478644,0.30161199,610.41,607.71,0.32910434]
[1743491478841,0.32765936,610.39,607.71,0.32910434]
[1743491479142,0.30161199,610.38,607.71,0.32910434]
[1743491479341,0.28571898,610.38,607.71,0.32910434]
[1743491479537,0.30163241,610.37,607.71,0.32910434]
[1743491479942,0.32768083,610.35,607.71,0.32910434]
[1743491480144,0.30163241,610.34,607.71,0.32910434]
[1743491480338,0.32769694,610.32,607.71,0.32910434]
[1743491480538,0.30163241,610.31,607.71,0.32910434]
[1743491480741,0.32771305,610.29,607.71,0.32910434]
[1743491481139,0.30163541,610.28,607.71,0.32910434]
[1743491481641,0.32772916,610.26,607.71,0.32910434]
[1743491481844,0.30163541,610.25,607.71,0.32910434]
[1743491482047,0.32774527,610.23,607.71,0.32910434]
[1743491482248,0.30163541,610.22,607.71,0.32910434]
[1743491482449,0.32776138,610.2,607.71,0.32910434]
[1743491482748,0.30163541,610.19,607.71,0.32910434]
[1743491483049,0.32777213,610.18,607.71,0.32910434]
[1743491483249,0.30163541,610.17,607.71,0.32910434]
[1743491483547,0.32778287,610.16,607.71,0.32910434]
[1743491483748,0.30163541,610.15,607.71,0.32910434]
[1743491483944,0.32779362,610.14,607.72,0.89]
[1743491484248,0.30163541,610.13,607.84,0.32903395]
[1743491484453,0.32780436,610.12,607.84,0.32903395]
[1743491484747,0.30163541,610.11,607.84,0.32903395]
[1743491484945,0.30163541,610.11,607.85,0.756]
[1743491485149,0.32781511,610.1,607.96,0.32896901]
[1743491485350,0.30163541,610.09,607.96,0.32896901]
[1743491485653,0.62946872,610.08,607.96,0.32896901]
[1743491485952,0.6294741,610.07,607.96,0.32896901]
[1743491486146,0.62947947,610.06,607.96,0.32896901]
[1743491486350,0.30164287,610.05,607.96,0.32896901]
[1743491486552,0.32784735,610.04,607.96,0.32896901]
[1743491486751,0.30164287,610.03,607.96,0.32896901]
[1743491487953,0.3278581,610.02,607.96,0.32896901]
[1743491488153,0.30164287,610.01,607.96,0.32896901]
[1743491488354,0.32786885,610.0,607.96,0.32896901]
[1743491488550,0.30164287,609.99,607.96,0.32896901]
[1743491488754,0.3278796,609.98,607.96,0.32896901]
[1743491488953,0.30164287,609.97,607.96,0.32896901]
[1743491489349,0.30164287,609.97,607.97,0.522]
[1743491489554,0.30164287,609.97,607.99,0.32895277]
[1743491489754,0.28572719,609.96,607.99,0.32895277]
[1743491490054,0.30164287,609.95,607.99,0.32895277]
[1743491491750,0.28572719,609.96,607.99,0.32895277]
[1743491491956,0.30163514,609.95,607.99,0.32895277]
[1743491492658,0.58735294,609.94,607.97,0.522]
[1743491492867,0.30163514,609.93,607.97,0.522]
[1743491495756,0.28574009,609.92,607.97,0.522]
[1743491495957,0.30163514,609.91,607.97,0.522]
[1743491498659,0.285753,609.9,607.97,0.522]
[1743491498961,0.30163514,609.89,607.97,0.522]
[1743491500160,0.285753,609.9,607.97,0.522]
[1743491500356,0.30163133,609.89,607.97,0.522]
[1743491502165,0.30163133,609.89,607.98,0.756]
[1743491504665,0.28570842,609.88,607.98,0.756]
[1743491504967,0.30163133,609.87,607.98,0.756]
[1743491505166,0.28570842,609.88,607.98,0.756]
[1743491506567,0.28570842,609.88,607.99,0.521]
[1743491507362,2.49593248,610.26,607.99,0.521]
[1743491507562,0.30157342,610.25,607.99,0.521]
[1743491507767,0.28566386,609.87,607.99,0.521]
[1743491507969,2.49593248,610.26,607.99,0.521]
[1743491508166,0.30159027,610.25,607.99,0.521]
[1743491508760,0.28566503,610.24,607.99,0.521]
[1743491508961,0.30157132,610.23,607.99,0.521]
[1743491510362,0.28566503,610.24,607.99,0.521]
[1743491510565,0.30157321,610.23,607.99,0.521]
[1743491511970,0.28566503,610.24,607.99,0.521]
[1743491512167,0.30157433,610.23,607.99,0.521]
[1743491513169,2.49593248,610.22,607.99,0.521]
[1743491513368,0.30157433,610.21,607.99,0.521]
[1743491513769,0.58723819,610.21,607.99,0.521]
[1743491513969,0.30157433,610.2,607.99,0.521]
[1743491516668,0.58724356,610.19,607.99,0.521]
[1743491516870,0.30157853,610.18,607.99,0.521]
[1743491519377,0.30157853,610.18,608.0,0.889]
[1743491519577,0.30157853,610.71,608.0,0.889]
[1743491519876,2.49593248,610.72,608.0,0.889]
[1743491519877,0.28566738,610.17,608.0,0.889]
[1743491520178,0.30156527,610.16,608.0,0.889]
[1743491520373,0.30156527,610.15,608.0,0.889]
[1743491520578,0.30156527,610.71,608.0,0.889]
[1743491520778,0.28560291,610.15,608.0,0.889]
[1743491521078,2.49593248,610.72,608.0,0.889]
[1743491521079,0.30156527,610.14,608.0,0.889]
[1743491521279,0.28560525,610.14,608.0,0.889]
[1743491521479,0.30156527,610.13,608.0,0.889]
[1743491523482,0.28560525,610.14,608.0,0.889]
[1743491523682,0.30154175,610.13,608.0,0.889]
[1743491525487,2.49593248,610.6,608.0,0.889]
[1743491525786,0.28566152,610.12,608.0,0.889]
[1743491525987,0.30153811,610.11,608.0,0.889]
[1743491526186,0.30153811,610.59,608.0,0.889]
[1743491526491,0.30153811,610.58,608.0,0.889]
[1743491526681,0.30153811,610.62,608.0,0.889]